fUST/lending_fUST_20241217
["ID","MTS","AMOUNT","RATE_DAILY","PERIOD"]
[345594670,1734373868934,-1000.0,0.00029315,28]
[345594671,1734373868950,-1000.0,0.00029315,28]
[345594672,1734373868965,-1000.0,0.00029315,28]
[345594673,1734373868974,-855.63,0.00029315,7]
[345594674,1734373868985,-500.0,0.00029315,7]
[345594675,1734373868996,-500.0,0.00029315,7]
[345594676,1734373869006,-1166.87,0.00029315,7]
[345594677,1734373869016,-2025.4,0.00029315,2]
[345594678,1734373869200,-500.0,0.00029315,7]
[345594679,1734373869223,-835.88,0.00029315,7]
[345594680,1734373869233,-1056.72,0.00029315,7]
[345594681,1734373869242,-500.0,0.00029315,7]
[345594682,1734373869252,-809.72,0.00029315,7]
[345594683,1734373869261,-2441.19,0.00029315,7]
[345594684,1734373869271,-1343.92,0.00029315,7]
[345594685,1734373869280,-500.0,0.00029315,7]
[345594686,1734373869290,-500.0,0.00029315,7]
[345594687,1734373869299,-1000.0,0.00029315,2]
[345594688,1734373869310,-500.0,0.00029315,7]
[345594689,1734373869320,-500.0,0.00029315,7]
[345594690,1734373869330,-669.81,0.00029315,7]
[345594691,1734373869340,-1088.46,0.00029315,7]
[345594692,1734373869350,-500.0,0.00029315,7]
[345594693,1734373869360,-579.63,0.00029315,7]
[345594694,1734373869370,-151.0,0.00029315,7]
[345594695,1734373869379,-1538.31,0.00029315,7]
[345594696,1734373869388,-151.0,0.00029315,7]
[345594697,1734373869399,-740.26,0.00029315,7]
[345594698,1734373869408,-237.53608,0.00029315,7]
[345594699,1734373869418,-500.0,0.00029315,2]
[345594700,1734373869427,-1022.87,0.00029315,7]
[345594701,1734373869437,-500.0,0.00029315,7]
[345594702,1734373869446,-797.18,0.00029315,7]
[345594703,1734373869455,-500.0,0.00029315,7]
[345594704,1734373869467,-500.0,0.00029315,7]
[345594705,1734373869476,-360.79242233,0.00029315,7]
[345594706,1734373869486,-500.0,0.00029315,7]
[345594707,1734373869495,-500.0,0.00029315,7]
[345594708,1734373869504,-1048.19,0.00029315,7]
[345594709,1734373869515,-500.0,0.00029315,7]
[345594710,1734373869527,-500.0,0.00029315,7]
[345594711,1734373869536,-16430.12,0.00029315,7]
[345594712,1734373869545,-500.0,0.00029315,7]
[345594713,1734373869555,-500.0,0.00029315,7]
[345594714,1734373869564,-1967.34,0.00029315,7]
[345594715,1734373869574,-2609.43,0.00029315,7]
[345594716,1734373869583,-500.0,0.00029315,7]
[345594717,1734373869592,-1078.98,0.00029315,7]
[345594718,1734373869603,-3929.87,0.00029315,5]
[345594719,1734373869612,-1884.79,0.00029315,7]
[345594720,1734373869622,-500.0,0.00029315,7]
[345594721,1734373869632,-500.0,0.00029315,7]
[345594722,1734373869642,-1246.41,0.00029315,7]
[345594723,1734373869652,-500.0,0.00029315,7]
[345594724,1734373869663,-9596.26,0.00029315,7]
[345594725,1734373869673,-516.43,0.00029315,7]
[345594726,1734373869683,-500.0,0.00029315,7]
[345594727,1734373869693,-500.0,0.00029315,7]
[345594728,1734373869705,-654.36,0.00029315,7]
[345594729,1734373869716,-500.0,0.00029315,7]
[345594730,1734373869726,-326.257217,0.00029315,7]
[345594731,1734373869736,-8176.81,0.00029315,7]
[345594732,1734373869746,-326.257217,0.00029315,7]
[345594733,1734373869755,-500.0,0.00029315,7]
[345594734,1734373869765,-500.0,0.00029315,2]
[345594735,1734373869775,-11026.87,0.00029315,7]
[345594736,1734373869785,-25775.28516694,0.00029315,7]
[345594737,1734373869987,-153.0,0.00022,2]
[345594738,1734373869997,-243.0,0.00027,2]
[345594739,1734373870006,-500.0,0.00027397,7]
[345594740,1734373870016,-850.46,0.00029041,7]
[345594741,1734373870026,-24016.46483306,0.00029315,7]
[345594742,1734373870036,-566.21,0.00029315,2]
[345594743,1734373870045,-500.0,0.00029315,7]
[345594744,1734373870055,-5132.11,0.00029315,7]
[345594745,1734373870064,-520.07,0.00029315,7]
[345594746,1734373870074,-500.0,0.00029315,7]
[345594747,1734373870084,-500.0,0.00029315,7]
[345594748,1734373870094,-760.292291,0.00029315,7]
[345594749,1734373870104,-548.83288069,0.00029315,7]
[345594750,1734373870115,-760.292291,0.00029315,7]
[345594751,1734373870126,-500.0,0.00029315,7]
[345594752,1734373870136,-1663.69,0.00029315,7]
[345594753,1734373870147,-2646.59,0.00029315,7]
[345594754,1734373870156,-500.0,0.00029315,7]
[345594755,1734373870166,-524.48,0.00029315,7]
[345594756,1734373870175,-941.13,0.00029315,7]
[345594757,1734373870185,-2823.16,0.00029315,7]
[345594758,1734373870195,-500.0,0.00029315,7]
[345594759,1734373870204,-500.0,0.00029315,7]
[345594760,1734373870215,-1610.16,0.00029315,7]
[345594761,1734373870225,-700.22,0.00029315,7]
[345594762,1734373870235,-500.0,0.00029315,7]
[345594763,1734373870245,-151.0,0.00029315,7]
[345594764,1734373870255,-2623.08,0.00029315,7]
[345594765,1734373870264,-500.0,0.00029315,7]
[345594766,1734373870273,-151.0,0.00029315,7]
[345594767,1734373870283,-4957.14,0.00029315,7]
[345594768,1734373870293,-942.66,0.00029315,7]
[345594769,1734373870302,-800.65,0.00029315,7]
[345594770,1734373870311,-500.0,0.00029315,7]
[345594771,1734373870321,-3274.75,0.00029315,7]
[345594772,1734373870330,-2688.22,0.00029315,7]
[345594773,1734373870339,-790.52,0.00029315,7]
[345594774,1734373870349,-198.81821644,0.00029315,7]
[345594775,1734373870358,-500.0,0.00029315,7]
[345594776,1734373870368,-810.73,0.00029315,7]
[345594777,1734373870377,-2340.34,0.00029315,7]
[345594778,1734373870387,-553.7,0.00029315,7]
[345594779,1734373870397,-500.0,0.00029315,7]
[345594780,1734373870406,-340.442045,0.00029315,7]
[345594781,1734373870416,-2321.11,0.00029315,7]
[345594782,1734373870425,-340.442045,0.00029315,7]
[345594783,1734373870434,-1581.38,0.00029315,7]
[345594784,1734373870445,-1317.62,0.00029315,7]
[345594785,1734373870455,-500.0,0.00029315,7]
[345594786,1734373870466,-984.71,0.00029315,7]
[345594787,1734373870476,-505.61,0.00029315,7]
[345594788,1734373870485,-500.0,0.00029315,7]
[345594789,1734373870494,-1165.57,0.00029315,7]
[345594790,1734373870504,-520.87,0.00029315,7]
[345594791,1734373870519,-696.46,0.00029315,7]
[345594792,1734373870529,-850.46,0.00029315,7]
[345594793,1734373870539,-587.0,0.00029339,2]
[345594794,1734373870548,-626.7427338,0.00029365,2]
[345594795,1734373870559,-411.27786599,0.00029366,2]
[345594796,1734373870569,-1000.0,0.00029371,2]
[345594797,1734373870578,-2000.0,0.000294,2]
[345594798,1734373870589,-2000.0,0.000294,2]
[345594799,1734373870598,-219.19537,0.000294,7]
[345594800,1734373870607,-151.0,0.000294,7]
[345594801,1734373870617,-23004.24081669,0.000294,7]
[345594802,1734373870627,-600.0,0.00029496,2]
[345594803,1734373870637,-4253.17,0.000295,7]
[345594804,1734373870646,-2998.98979064,0.000295,2]
[345594805,1734373870656,-222.35118324,0.000295,30]
[345594806,1734373870665,-300.0,0.000295,14]
[345594807,1734373870674,-730.43,0.000295,31]
[345594808,1734373870683,-730.43,0.000295,31]
[345594809,1734373870693,-730.43,0.000295,31]
[345594810,1734373870702,-730.43,0.000295,31]
[345594811,1734373870712,-730.43,0.000295,31]
[345594812,1734373870722,-730.43,0.000295,31]
[345594813,1734373870731,-730.43,0.000295,31]
[345594814,1734373870741,-730.43,0.000295,31]
[345594815,1734373870750,-730.43,0.000295,31]
[345594816,1734373870762,-730.43,0.000295,31]
[345594817,1734373870772,-730.43,0.000295,31]
[345594818,1734373870781,-730.43,0.000295,31]
[345594819,1734373870791,-730.43,0.000295,31]
[345594820,1734373870801,-730.43,0.000295,31]
[345594821,1734373870810,-730.43,0.000295,31]
[345594822,1734373870819,-730.43,0.000295,31]
[345594823,1734373870829,-730.43,0.000295,31]
[345594824,1734373870839,-730.43,0.000295,31]
[345594825,1734373870850,-730.43,0.000295,31]
[345594826,1734373870860,-730.43,0.000295,31]
[345594827,1734373870869,-730.43,0.000295,31]
[345594828,1734373870879,-730.43,0.000295,31]
[345594829,1734373870889,-730.43,0.000295,31]
[345594830,1734373870898,-730.43,0.000295,31]
[345594831,1734373870908,-205.081789,0.000295,7]
[345594832,1734373870917,-205.081789,0.000295,7]
[345594833,1734373870927,-151.0,0.000295,7]
[345594834,1734373870937,-268.600536,0.000295,7]
[345594835,1734373870947,-268.600536,0.000295,7]
[345594836,1734373870956,-194.412945,0.00029565,2]
[345594837,1734373870966,-308.93350822,0.0002958,2]
[345594838,1734373870976,-500.0,0.00029589,7]
[345594839,1734373870985,-500.0,0.00029589,7]
[345594840,1734373870994,-500.0,0.00029589,7]
[345594841,1734373871004,-500.0,0.00029589,7]
[345594842,1734373871013,-781.2,0.00029589,7]
[345594843,1734373871022,-500.0,0.00029589,7]
[345594844,1734373871032,-652.55,0.00029589,7]
[345594845,1734373871041,-500.0,0.00029589,7]
[345594846,1734373871051,-500.0,0.00029589,7]
[345594847,1734373871060,-500.0,0.00029589,7]
[345594848,1734373871070,-500.0,0.00029589,7]
[345594849,1734373871080,-500.0,0.00029589,7]
[345594850,1734373871089,-1942.51,0.00029589,7]
[345594851,1734373871099,-549.01,0.00029589,7]
[345594852,1734373871109,-738.47,0.00029589,7]
[345594853,1734373871118,-500.0,0.00029589,7]
[345594854,1734373871128,-500.0,0.00029589,7]
[345594855,1734373871138,-683.4,0.00029589,7]
[345594856,1734373871147,-500.0,0.00029589,7]
[345594857,1734373871156,-965.75,0.00029589,7]
[345594858,1734373871167,-2608.94,0.00029589,7]
[345594859,1734373871177,-615.23,0.00029589,7]
[345594860,1734373871187,-864.53,0.00029589,7]
[345594861,1734373871195,-500.0,0.00029589,7]
[345594862,1734373871205,-938.96,0.00029589,7]
[345594863,1734373871214,-168.02,0.00029589,7]
[345594864,1734373871224,-563.36,0.00029589,7]
[345594865,1734373871233,-500.0,0.00029589,7]
[345594866,1734373871242,-1710.74,0.00029589,7]
[345594867,1734373871251,-855.63,0.00029589,7]
[345594868,1734373871261,-500.0,0.00029589,7]
[345594869,1734373871270,-357.99658431,0.00029589,7]
[345594870,1734373871279,-1166.87,0.00029589,7]
[345594871,1734373871420,-2025.4,0.00029589,2]
[345594872,1734373871431,-500.0,0.00029589,7]
[345594873,1734373871442,-835.88,0.00029589,7]
[345594874,1734373871453,-1056.72,0.00029589,7]
[345594875,1734373871464,-500.0,0.00029589,7]
[345594876,1734373871474,-809.72,0.00029589,7]
[345594877,1734373871484,-2441.19,0.00029589,7]
[345594878,1734373871493,-1343.92,0.00029589,7]
[345594879,1734373871503,-500.0,0.00029589,7]
[345594880,1734373871514,-500.0,0.00029589,7]
[345594881,1734373871527,-1000.0,0.00029589,2]
[345594882,1734373871545,-500.0,0.00029589,7]
[345594883,1734373871555,-500.0,0.00029589,7]
[345594884,1734373871566,-669.81,0.00029589,7]
[345594885,1734373871578,-1088.46,0.00029589,7]
[345594886,1734373871588,-500.0,0.00029589,7]
[345594887,1734373871599,-579.63,0.00029589,7]
[345594888,1734373871608,-151.0,0.00029589,7]
[345594889,1734373871618,-1538.31,0.00029589,7]
[345594890,1734373871627,-151.0,0.00029589,7]
[345594891,1734373871637,-740.26,0.00029589,7]
[345594892,1734373871647,-500.0,0.00029589,2]
[345594893,1734373871656,-1022.87,0.00029589,7]
[345594894,1734373871665,-500.0,0.00029589,7]
[345594895,1734373871675,-797.18,0.00029589,7]
[345594896,1734373871685,-500.0,0.00029589,7]
[345594897,1734373871694,-500.0,0.00029589,7]
[345594898,1734373871704,-181.51,0.00029589,7]
[345594899,1734373871714,-500.0,0.00029589,7]
[345594900,1734373871725,-1048.19,0.00029589,7]
[345594901,1734373871734,-500.0,0.00029589,7]
[345594902,1734373871744,-500.0,0.00029589,7]
[345594903,1734373871754,-16430.12,0.00029589,7]
[345594904,1734373871763,-500.0,0.00029589,7]
[345594905,1734373871772,-500.0,0.00029589,7]
[345594906,1734373871782,-1967.34,0.00029589,7]
[345594907,1734373871791,-2609.43,0.00029589,7]
[345594908,1734373871800,-500.0,0.00029589,7]
[345594909,1734373871810,-1078.98,0.00029589,7]
[345594910,1734373871819,-3929.87,0.00029589,5]
[345594911,1734373871829,-1884.79,0.00029589,7]
[345594912,1734373871839,-458.83916112,0.00029589,7]
[345594913,1734373871848,-247.61923412,0.00029589,7]
[345594914,1734373871858,-1246.41,0.00029589,7]
[345594915,1734373871867,-500.0,0.00029589,7]
[345594916,1734373871877,-9596.26,0.00029589,7]
[345594917,1734373871887,-516.43,0.00029589,7]
[345594918,1734373871897,-500.0,0.00029589,7]
[345594919,1734373871906,-500.0,0.00029589,7]
[345594920,1734373871916,-654.36,0.00029589,7]
[345594921,1734373871926,-500.0,0.00029589,7]
[345594922,1734373871935,-8176.81,0.00029589,7]
[345594923,1734373871945,-500.0,0.00029589,7]
[345594924,1734373871956,-500.0,0.00029589,2]
[345594925,1734373871967,-11026.87,0.00029589,7]
[345594926,1734373871978,-626.7427338,0.00029589,2]
[345594927,1734373871988,-34963.35660808,0.00029589,7]
[345594929,1734374435774,166.637762,0.00013973,2]
[345594950,1734375018415,553.07404285,0.0002556,120]
[345595092,1734375039082,-313.8070212,0.0002123,2]
[345595093,1734375039092,-166.637762,0.00021661,2]
[345595094,1734375039105,-1670.1552168,0.00025044,7]
[345595095,1734375039130,-3329.8447832,0.00025044,7]
[345595096,1734375039140,-304.52211,0.00025204,4]
[345595097,1734375039150,-175.710541,0.0002569,2]
[345595098,1734375039160,-1835.3155764,0.00025767,2]
[345595099,1734375039169,-188.248915,0.00025917,2]
[345595100,1734375039178,-300.0,0.00026066,2]
[345595101,1734375039188,-300.0,0.00026066,2]
[345595102,1734375039198,-16087.7141095,0.00026067,2]
[345595103,1734375039208,-203.991352,0.00026205,2]
[345595104,1734375039217,-188.248915,0.00026876,2]
[345595105,1734375039227,-533.0,0.00027068,2]
[345595106,1734375039237,-2154.0,0.00027068,2]
[345595107,1734375039247,-2368.0,0.00027068,2]
[345595108,1734375039256,-268.28590954,0.00027147,2]
[345595109,1734375039266,-153.0,0.00027245,2]
[345595110,1734375039276,-153.0,0.00027245,2]
[345595111,1734375039286,-153.0,0.00027245,2]
[345595112,1734375039300,-153.0,0.00027245,2]
[345595113,1734375039310,-153.0,0.00027245,2]
[345595114,1734375039319,-153.0,0.00027245,2]
[345595115,1734375039329,-153.0,0.00027245,2]
[345595116,1734375039338,-153.0,0.00027245,2]
[345595117,1734375039348,-153.0,0.00027245,2]
[345595118,1734375039360,-153.0,0.00027247,2]
[345595119,1734375039370,-153.0,0.00027247,2]
[345595120,1734375039380,-153.0,0.00027247,2]
[345595121,1734375039390,-153.0,0.00027247,2]
[345595123,1734375039401,-187.361,0.00027249,16]
[345595125,1734375039411,-2713.2210388,0.00027297,21]
[345595127,1734375039423,-666.0,0.00027297,2]
[345595130,1734375039434,-500.0,0.00027373,2]
[345595132,1734375039444,-500.0,0.00027397,7]
[345595134,1734375039454,-588.01943456,0.00027397,7]
[345595136,1734375039464,-500.0,0.00027397,7]
[345595138,1734375039475,-500.0,0.00027397,7]
[345595140,1734375039485,-500.0,0.00027397,7]
[345595142,1734375039495,-503.69904322,0.00027397,7]
[345595144,1734375039505,-586.85,0.00027397,7]
[345595146,1734375039515,-729.29,0.00027397,7]
[345595148,1734375039525,-627.42,0.00027397,7]
[345595150,1734375039535,-534.77,0.00027397,7]
[345595152,1734375039545,-500.0,0.00027397,7]
[345595154,1734375039555,-500.0,0.00027397,7]
[345595156,1734375039564,-500.0,0.00027397,7]
[345595158,1734375039574,-500.0,0.00027397,7]
[345595160,1734375039585,-500.0,0.00027397,7]
[345595162,1734375039595,-500.0,0.00027397,7]
[345595164,1734375039607,-639.29,0.00027397,7]
[345595166,1734375039617,-540.33,0.00027397,7]
[345595168,1734375039626,-500.0,0.00027397,7]
[345595170,1734375039637,-1630.59,0.00027397,7]
[345595172,1734375039647,-500.0,0.00027397,7]
[345595174,1734375039657,-500.0,0.00027397,7]
[345595177,1734375039667,-500.0,0.00027397,7]
[345595179,1734375039677,-168.0,0.00027397,7]
[345595181,1734375039687,-500.0,0.00027397,7]
[345595183,1734375039697,-500.0,0.00027397,7]
[345595185,1734375039707,-500.0,0.00027397,7]
[345595187,1734375039717,-1069.21,0.00027397,7]
[345595189,1734375039727,-500.0,0.00027397,7]
[345595191,1734375039737,-500.0,0.00027397,7]
[345595193,1734375039747,-500.0,0.00027397,2]
[345595195,1734375039756,-500.0,0.00027397,7]
[345595197,1734375039766,-1265.88,0.00027397,2]
[345595199,1734375039776,-522.43,0.00027397,7]
[345595201,1734375039786,-304.72453638,0.00027397,7]
[345595203,1734375039797,-660.45,0.00027397,7]
[345595205,1734375039806,-506.07,0.00027397,7]
[345595207,1734375039816,-500.0,0.00027397,7]
[345595209,1734375039826,-1525.74,0.00027397,7]
[345595211,1734375039835,-839.95,0.00027397,7]
[345595213,1734375039845,-500.0,0.00027397,7]
[345595236,1734375040061,-1000.0,0.00027397,2]
[345595238,1734375040072,-500.0,0.00027397,7]
[345595240,1734375040082,-500.0,0.00027397,7]
[345595243,1734375040093,-500.0,0.00027397,7]
[345595246,1734375040103,-680.28,0.00027397,7]
[345595249,1734375040114,-500.0,0.00027397,7]
[345595251,1734375040124,-961.44,0.00027397,7]
[345595253,1734375040133,-500.0,0.00027397,7]
[345595255,1734375040143,-500.0,0.00027397,7]
[345595257,1734375040152,-604.64,0.00027397,7]
[345595259,1734375040162,-691.97,0.00027397,7]
[345595261,1734375040172,-591.2483186,0.00027397,2]
[345595263,1734375040182,-500.0,0.00027397,7]
[345595265,1734375040190,-500.0,0.00027397,7]
[345595267,1734375040200,-503.2224375,0.00027397,7]
[345595269,1734375040210,-500.0,0.00027397,7]
[345595271,1734375040219,-500.0,0.00027397,7]
[345595273,1734375040229,-566.97,0.00027397,7]
[345595275,1734375040239,-655.12,0.00027397,7]
[345595277,1734375040248,-500.0,0.00027397,7]
[345595279,1734375040258,-500.0,0.00027397,7]
[345595281,1734375040267,-500.0,0.00027397,7]
[345595283,1734375040277,-500.0,0.00027397,7]
[345595285,1734375040286,-2456.17,0.00027397,5]
[345595287,1734375040296,-674.36,0.00027397,7]
[345595289,1734375040305,-500.0,0.00027397,7]
[345595291,1734375040315,-500.0,0.00027397,7]
[345595293,1734375040325,-1177.99,0.00027397,7]
[345595295,1734375040335,-500.0,0.00027397,7]
[345595297,1734375040345,-500.0,0.00027397,7]
[345595299,1734375040357,-779.01,0.00027397,7]
[345595301,1734375040368,-500.0,0.00027397,7]
[345595303,1734375040379,-4890.95746648,0.00027397,7]
[345595308,1734375040414,-2000.83253352,0.00027397,7]
[345595310,1734375040423,-500.0,0.00027397,7]
[345595312,1734375040433,-500.0,0.00027397,7]
[345595314,1734375040443,-500.0,0.00027397,7]
[345595316,1734375040452,-866.95606556,0.00027397,7]
[345595671,1734375044043,-500.0,0.00027397,7]
[345595673,1734375044053,-500.0,0.00027397,7]
[345595675,1734375044064,-500.0,0.00027397,2]
[345595678,1734375044074,-31737.69,0.00027397,7]
[345595680,1734375044084,-500.0,0.00027397,7]
[345595682,1734375044094,-500.0,0.00027397,7]
[345595684,1734375044104,-3421.41,0.00027397,7]
[345595686,1734375044117,-500.0,0.00027397,7]
[345595688,1734375044126,-500.0,0.00027397,7]
[345595690,1734375044136,-1764.4,0.00027397,7]
[345595692,1734375044147,-1646.84,0.00027397,7]
[345595694,1734375044157,-500.0,0.00027397,7]
[345595696,1734375044167,-500.0,0.00027397,7]
[345595698,1734375044177,-1109.13,0.00027397,7]
[345595700,1734375044188,-500.0,0.00027397,7]
[345595702,1734375044197,-500.0,0.00027397,7]
[345595704,1734375044207,-500.0,0.00027397,7]
[345595706,1734375044216,-500.0,0.00027397,7]
[345595708,1734375044226,-500.0,0.00027397,7]
[345595710,1734375044235,-500.0,0.00027397,7]
[345595712,1734375044244,-500.0,0.00027397,7]
[345595714,1734375044254,-500.0,0.00027397,7]
[345595716,1734375044264,-1748.72,0.00027397,7]
[345595718,1734375044274,-527.01,0.00027397,7]
[345595720,1734375044284,-500.0,0.00027397,7]
[345595722,1734375044293,-500.0,0.00027397,7]
[345595724,1734375044303,-500.0,0.00027397,7]
[345595726,1734375044313,-326.81069358,0.00027397,7]
[345595728,1734375044323,-3304.76,0.00027397,7]
[345595730,1734375044333,-2183.17,0.00027397,7]
[345595732,1734375044343,-878.41,0.00027397,7]
[345595734,1734375044352,-1073.44,0.00027397,7]
[345595736,1734375044370,-500.0,0.00027397,7]
[345595738,1734375044379,-628.44,0.00027397,7]
[345595740,1734375044388,-500.0,0.00027397,7]
[345595742,1734375044398,-540.49,0.00027397,7]
[345595744,1734375044407,-656.47,0.00027397,7]
[345595746,1734375044417,-777.04,0.00027397,7]
[345595748,1734375044426,-1547.4,0.00027397,7]
[345595750,1734375044436,-1792.15,0.00027397,7]
[345595752,1734375044445,-500.0,0.00027397,7]
[345595754,1734375044455,-500.0,0.00027397,7]
[345595756,1734375044465,-500.0,0.00027397,7]
[345595758,1734375044474,-1560.22,0.00027397,7]
[345595760,1734375044484,-231.15791049,0.00027397,7]
[345595762,1734375044498,-302.60208951,0.00027397,7]
[345595764,1734375044508,-1054.25,0.00027397,7]
[345595766,1734375044517,-1214.07,0.00027397,7]
[345595768,1734375044529,-500.0,0.00027397,7]
[345595770,1734375044539,-500.0,0.00027397,7]
[345595772,1734375044550,-10268.83,0.00027397,7]
[345595774,1734375044559,-500.0,0.00027397,7]
[345595776,1734375044569,-500.0,0.00027397,7]
[345595778,1734375044579,-500.0,0.00027397,7]
[345595780,1734375044589,-500.0,0.00027397,7]
[345595782,1734375044599,-5997.66,0.00027397,7]
[345595784,1734375044612,-500.0,0.00027397,7]
[345595787,1734375044622,-1630.9,0.00027397,7]
[345595789,1734375044631,-500.0,0.00027397,7]
[345595790,1734375044641,-1229.59,0.00027397,7]
[345595792,1734375044651,-500.0,0.00027397,7]
[345595794,1734375044660,-337.34784308,0.00027397,7]
[345595797,1734375044670,-500.0,0.00027397,7]
[345595799,1734375044680,-603.6,0.00027397,7]
[345595801,1734375044690,-500.0,0.00027397,7]
[345595802,1734375044699,-268.28590949,0.00027487,2]
[345595804,1734375044708,-151.0,0.00027671,7]
[345595806,1734375044717,-500.0,0.00027671,7]
[345595808,1734375044727,-500.0,0.00027671,7]
[345595810,1734375044736,-500.0,0.00027671,7]
[345595812,1734375044746,-586.85,0.00027671,7]
[345595814,1734375044755,-729.29,0.00027671,7]
[345595816,1734375044764,-627.42,0.00027671,7]
[345595818,1734375044774,-534.77,0.00027671,7]
[345595820,1734375044784,-500.0,0.00027671,7]
[345595822,1734375044793,-500.0,0.00027671,7]
[345595824,1734375044803,-500.0,0.00027671,7]
[345595826,1734375044813,-500.0,0.00027671,7]
[345595828,1734375044823,-500.0,0.00027671,7]
[345595831,1734375044832,-639.29,0.00027671,7]
[345595833,1734375044841,-540.33,0.00027671,7]
[345595834,1734375044850,-506.2770971,0.00027671,7]
[345595836,1734375044862,-1630.59,0.00027671,7]
[345595838,1734375044871,-500.0,0.00027671,7]
[345595840,1734375044884,-500.0,0.00027671,7]
[345595842,1734375044894,-500.0,0.00027671,7]
[345595844,1734375044904,-168.0,0.00027671,7]
[345595846,1734375044913,-500.0,0.00027671,7]
[345595848,1734375044923,-500.0,0.00027671,7]
[345595851,1734375044933,-500.0,0.00027671,7]
[345595853,1734375044942,-1069.21,0.00027671,7]
[345595855,1734375044952,-500.0,0.00027671,7]
[345595857,1734375044962,-500.0,0.00027671,7]
[345595859,1734375044971,-500.0,0.00027671,2]
[345595861,1734375044980,-500.0,0.00027671,7]
[345595863,1734375044990,-1265.88,0.00027671,2]
[345595865,1734375044998,-522.43,0.00027671,7]
[345595867,1734375045008,-660.45,0.00027671,7]
[345595869,1734375045018,-506.07,0.00027671,7]
[345595871,1734375045027,-500.0,0.00027671,7]
[345595873,1734375045036,-1525.74,0.00027671,7]
[345595875,1734375045046,-839.95,0.00027671,7]
[345595877,1734375045055,-500.0,0.00027671,7]
[345595879,1734375045064,-1000.0,0.00027671,2]
[345595881,1734375045074,-518.57760692,0.00027671,7]
[345595883,1734375045083,-500.0,0.00027671,7]
[345595885,1734375045093,-500.0,0.00027671,7]
[345595887,1734375045102,-680.28,0.00027671,7]
[345595889,1734375045115,-500.0,0.00027671,7]
[345595891,1734375045123,-961.44,0.00027671,7]
[345595893,1734375045133,-500.0,0.00027671,7]
[345595895,1734375045142,-691.97,0.00027671,7]
[345595896,1734375045151,-500.0,0.00027671,7]
[345595899,1734375045162,-500.0,0.00027671,7]
[345595901,1734375045172,-500.0,0.00027671,7]
[345595903,1734375045182,-500.0,0.00027671,7]
[345595905,1734375045193,-566.97,0.00027671,7]
[345595907,1734375045202,-655.12,0.00027671,7]
[345595909,1734375045212,-500.0,0.00027671,7]
[345595911,1734375045221,-500.0,0.00027671,7]
[345595913,1734375045231,-500.0,0.00027671,7]
[345595915,1734375045241,-500.0,0.00027671,7]
[345595917,1734375045250,-2456.17,0.00027671,5]
[345595919,1734375045260,-500.0,0.00027671,7]
[345595921,1734375045269,-500.0,0.00027671,7]
[345595923,1734375045279,-1177.99,0.00027671,7]
[345595925,1734375045288,-500.0,0.00027671,7]